fUSD/lending_fUSD_20241219
["ID","MTS","AMOUNT","RATE_DAILY","PERIOD"]
[346000312,1734618650124,-500.0,0.00022465,4]
[346000313,1734618650139,-835.94,0.00022465,4]
[346000314,1734618650152,-500.0,0.00022465,4]
[346000315,1734618650165,-500.0,0.00022465,4]
[346000316,1734618650177,-1527.78,0.00022465,4]
[346000317,1734618650189,-500.0,0.00022465,4]
[346000318,1734618650201,-532.57625484,0.00022465,4]
[346000319,1734618650213,-2242.39,0.00022465,4]
[346000320,1734618650226,-500.0,0.00022465,4]
[346000321,1734618650239,-500.0,0.00022465,4]
[346000322,1734618650252,-500.0,0.00022465,4]
[346000323,1734618650266,-1000.0,0.00022465,2]
[346000324,1734618650279,-1423.1,0.00022465,4]
[346000325,1734618650291,-688.8,0.00022465,4]
[346000326,1734618650304,-1839.25,0.00022465,4]
[346000327,1734618650316,-500.0,0.00022465,4]
[346000328,1734618650332,-500.0,0.00022465,4]
[346000329,1734618650345,-500.0,0.00022465,4]
[346000330,1734618650358,-660.21,0.00022465,4]
[346000331,1734618650371,-537.53,0.00022465,4]
[346000332,1734618650384,-774.82,0.00022465,4]
[346000333,1734618650397,-500.0,0.00022465,4]
[346000334,1734618650409,-500.0,0.00022465,4]
[346000335,1734618650423,-500.0,0.00022465,4]
[346000336,1734618650436,-159.36,0.00022465,4]
[346000337,1734618650448,-500.0,0.00022465,4]
[346000338,1734618650461,-500.0,0.00022465,4]
[346000339,1734618650473,-539.54613711,0.00022465,4]
[346000340,1734618650486,-500.0,0.00022465,4]
[346000341,1734618650499,-3619.14,0.00022465,4]
[346000342,1734618650512,-2277.39,0.00022465,4]
[346000343,1734618650524,-500.0,0.00022465,4]
[346000344,1734618650537,-590.84,0.00022465,4]
[346000345,1734618650549,-636.83,0.00022465,4]
[346000346,1734618650562,-1506.26,0.00022465,4]
[346000347,1734618650574,-500.0,0.00022465,4]
[346000348,1734618650587,-500.0,0.00022465,4]
[346000349,1734618650600,-500.0,0.00022465,4]
[346000350,1734618650612,-1450.17,0.00022465,4]
[346000351,1734618650624,-500.0,0.00022465,4]
[346000352,1734618650636,-500.0,0.00022465,4]
[346000353,1734618650650,-1431.46,0.00022465,4]
[346000354,1734618650661,-622.14,0.00022465,4]
[346000355,1734618650674,-500.0,0.00022465,4]
[346000356,1734618650688,-500.0,0.00022465,4]
[346000357,1734618650700,-615.79,0.00022465,4]
[346000358,1734618650713,-1118.32,0.00022465,4]
[346000359,1734618650726,-500.0,0.00022465,4]
[346000360,1734618650738,-1942.08,0.00022465,4]
[346000361,1734618650751,-640.79,0.00022465,4]
[346000362,1734618650764,-500.0,0.00022465,4]
[346000363,1734618650777,-500.0,0.00022465,4]
[346000364,1734618650788,-617.09,0.00022465,4]
[346000365,1734618650801,-500.0,0.00022465,4]
[346000366,1734618650814,-500.0,0.00022465,4]
[346000367,1734618650826,-500.0,0.00022465,4]
[346000368,1734618650841,-500.0,0.00022465,4]
[346000369,1734618650853,-3701.41,0.00022465,4]
[346000370,1734618650866,-500.0,0.00022465,2]
[346000371,1734618650878,-581.02,0.00022465,4]
[346000372,1734618650890,-500.0,0.00022465,4]
[346000373,1734618650903,-500.0,0.00022465,4]
[346000374,1734618650915,-590.95,0.00022465,4]
[346000375,1734618650928,-500.0,0.00022465,4]
[346000376,1734618650941,-500.0,0.00022465,4]
[346000377,1734618650953,-500.0,0.00022465,4]
[346000378,1734618650965,-742.39,0.00022465,4]
[346000379,1734618650978,-500.0,0.00022465,4]
[346000380,1734618650991,-500.0,0.00022465,4]
[346000381,1734618651004,-873.82,0.00022465,4]
[346000382,1734618651016,-500.0,0.00022465,4]
[346000383,1734618651029,-500.56,0.00022465,4]
[346000384,1734618651041,-500.0,0.00022465,4]
[346000385,1734618651051,-500.0,0.00022465,4]
[346000386,1734618651064,-500.0,0.00022465,4]
[346000387,1734618651074,-154.83,0.00022465,4]
[346000388,1734618651085,-500.0,0.00022465,4]
[346000389,1734618651095,-1548.53,0.00022465,4]
[346000390,1734618651104,-500.0,0.00022465,4]
[346000391,1734618651114,-500.0,0.00022465,4]
[346000392,1734618651124,-727.98,0.00022465,4]
[346000393,1734618651397,-500.0,0.00022465,4]
[346000394,1734618651424,-500.0,0.00022465,4]
[346000395,1734618651438,-500.0,0.00022465,4]
[346000396,1734618651448,-500.0,0.00022465,4]
[346000397,1734618651457,-500.0,0.00022465,4]
[346000398,1734618651466,-500.0,0.00022465,4]
[346000399,1734618651476,-885.56,0.00022465,4]
[346000400,1734618651486,-500.0,0.00022465,4]
[346000401,1734618651495,-270.15199387,0.00022465,4]
[346000402,1734618651504,-1819.6,0.00022465,4]
[346000403,1734618651514,-500.0,0.00022465,4]
[346000404,1734618651523,-990.87,0.00022465,4]
[346000405,1734618651533,-150.0,0.00022476,4]
[346000406,1734618651542,-150.0,0.000225,2]
[346000407,1734618651551,-200.0,0.000225,2]
[346000408,1734618651560,-900.0,0.000225,8]
[346000409,1734618651569,-900.0,0.000225,8]
[346000410,1734618651579,-900.0,0.000225,8]
[346000411,1734618651590,-900.0,0.000225,8]
[346000412,1734618651599,-900.0,0.000225,8]
[346000413,1734618651608,-900.0,0.000225,8]
[346000414,1734618651618,-535.07414219,0.00022539,2]
[346000415,1734618651628,-38880.30302844,0.00022539,2]
[346000416,1734618651637,-150.0,0.00022548,4]
[346000417,1734618651647,-12949.00543649,0.00022556,2]
[346000418,1734618651656,-152.37927094,0.00022559,2]
[346000419,1734618651665,-494.15,0.00022562,2]
[346000420,1734618651675,-150.0,0.00022609,4]
[346000421,1734618651685,-150.0,0.0002262,4]
[346000422,1734618651694,-150.0,0.00022692,4]
[346000423,1734618651703,-200.0,0.00022725,2]
[346000424,1734618651713,-999.0,0.00022738,2]
[346000425,1734618651723,-20354.21782001,0.00022738,2]
[346000426,1734618651732,-226.694226,0.00022739,4]
[346000427,1734618651742,-481.675102,0.00022739,4]
[346000428,1734618651751,-500.0,0.00022739,4]
[346000429,1734618651760,-189.66,0.00022739,4]
[346000430,1734618651769,-500.0,0.00022739,4]
[346000431,1734618651778,-500.0,0.00022739,4]
[346000432,1734618651788,-500.0,0.00022739,4]
[346000433,1734618651797,-531.19210456,0.00022739,4]
[346000434,1734618651807,-500.0,0.00022739,4]
[346000435,1734618651817,-500.0,0.00022739,4]
[346000436,1734618651827,-500.0,0.00022739,4]
[346000437,1734618651837,-500.0,0.00022739,4]
[346000438,1734618651846,-500.0,0.00022739,4]
[346000439,1734618651855,-506.7030439,0.00022739,4]
[346000440,1734618651865,-500.0,0.00022739,4]
[346000441,1734618651874,-500.0,0.00022739,4]
[346000442,1734618651883,-500.0,0.00022739,4]
[346000443,1734618651893,-500.0,0.00022739,4]
[346000444,1734618651902,-500.0,0.00022739,4]
[346000445,1734618651912,-500.0,0.00022739,4]
[346000446,1734618651921,-500.0,0.00022739,4]
[346000447,1734618651930,-595.60617698,0.00022739,4]
[346000448,1734618651939,-500.0,0.00022739,4]
[346000449,1734618651948,-500.0,0.00022739,4]
[346000450,1734618651958,-500.0,0.00022739,4]
[346000451,1734618651967,-500.0,0.00022739,4]
[346000452,1734618651978,-500.0,0.00022739,4]
[346000453,1734618651989,-246.00446069,0.00022739,4]
[346000454,1734618651998,-505.8930173,0.00022739,4]
[346000455,1734618652008,-500.0,0.00022739,4]
[346000456,1734618652017,-500.0,0.00022739,4]
[346000457,1734618652027,-500.0,0.00022739,4]
[346000458,1734618652036,-500.0,0.00022739,4]
[346000459,1734618652046,-500.0,0.00022739,4]
[346000460,1734618652056,-500.0,0.00022739,4]
[346000461,1734618652068,-500.0,0.00022739,4]
[346000462,1734618652077,-500.0,0.00022739,4]
[346000463,1734618652089,-500.0,0.00022739,4]
[346000464,1734618652100,-500.0,0.00022739,4]
[346000465,1734618652110,-504.63469838,0.00022739,4]
[346000466,1734618652119,-268.79691227,0.00022739,4]
[346000467,1734618652128,-500.0,0.00022739,4]
[346000468,1734618652138,-507.41624979,0.00022739,4]
[346000469,1734618652148,-500.0,0.00022739,4]
[346000470,1734618652157,-508.55969926,0.00022739,4]
[346000471,1734618652167,-500.0,0.00022739,4]
[346000472,1734618652176,-500.0,0.00022739,4]
[346000473,1734618652185,-500.0,0.00022739,4]
[346000474,1734618652195,-500.0,0.00022739,4]
[346000475,1734618652204,-500.0,0.00022739,4]
[346000476,1734618652213,-500.0,0.00022739,4]
[346000477,1734618652223,-500.0,0.00022739,4]
[346000478,1734618652232,-312.41940242,0.00022739,4]
[346000479,1734618652242,-500.0,0.00022739,4]
[346000480,1734618652251,-500.0,0.00022739,4]
[346000481,1734618652261,-500.0,0.00022739,4]
[346000482,1734618652271,-500.0,0.00022739,4]
[346000483,1734618652281,-500.0,0.00022739,4]
[346000484,1734618652291,-506.30027053,0.00022739,4]
[346000485,1734618652301,-500.0,0.00022739,4]
[346000486,1734618652311,-505.85000327,0.00022739,4]
[346000487,1734618652321,-500.0,0.00022739,4]
[346000488,1734618652331,-500.0,0.00022739,4]
[346000489,1734618652345,-500.0,0.00022739,4]
[346000490,1734618652355,-155.64686201,0.00022739,4]
[346000491,1734618652365,-500.0,0.00022739,4]
[346000492,1734618652374,-500.0,0.00022739,4]
[346000493,1734618652384,-500.0,0.00022739,4]
[346000494,1734618652394,-500.0,0.00022739,4]
[346000495,1734618652404,-500.0,0.00022739,4]
[346000496,1734618652415,-598.33938767,0.00022739,4]
[346000497,1734618652424,-500.0,0.00022739,4]
[346000498,1734618652434,-500.0,0.00022739,4]
[346000499,1734618652443,-500.0,0.00022739,4]
[346000500,1734618652453,-500.0,0.00022739,4]
[346000501,1734618652463,-500.0,0.00022739,4]
[346000502,1734618652472,-500.0,0.00022739,4]
[346000503,1734618652482,-551.52,0.00022739,4]
[346000504,1734618652492,-500.0,0.00022739,4]
[346000505,1734618652502,-500.0,0.00022739,4]
[346000506,1734618652512,-500.0,0.00022739,4]
[346000507,1734618652521,-500.0,0.00022739,4]
[346000508,1734618652531,-500.0,0.00022739,4]
[346000509,1734618652540,-500.0,0.00022739,4]
[346000510,1734618652549,-500.0,0.00022739,4]
[346000511,1734618652559,-500.0,0.00022739,4]
[346000512,1734618652568,-500.0,0.00022739,4]
[346000513,1734618652578,-607.87,0.00022739,4]
[346000514,1734618652589,-500.0,0.00022739,4]
[346000515,1734618652599,-500.0,0.00022739,4]
[346000516,1734618652608,-500.0,0.00022739,4]
[346000517,1734618652617,-500.0,0.00022739,4]
[346000518,1734618652627,-268.61,0.00022739,4]
[346000519,1734618652636,-500.0,0.00022739,4]
[346000520,1734618652645,-500.0,0.00022739,4]
[346000521,1734618652655,-536.54,0.00022739,4]
[346000522,1734618652664,-500.0,0.00022739,4]
[346000523,1734618652673,-587.88,0.00022739,4]
[346000524,1734618652682,-500.0,0.00022739,4]
[346000525,1734618652692,-500.0,0.00022739,4]
[346000526,1734618652702,-562.66,0.00022739,4]
[346000527,1734618652711,-562.83,0.00022739,4]
[346000528,1734618652721,-500.0,0.00022739,4]
[346000529,1734618652730,-500.0,0.00022739,4]
[346000530,1734618652739,-500.0,0.00022739,4]
[346000531,1734618652748,-500.0,0.00022739,4]
[346000532,1734618652758,-500.0,0.00022739,4]
[346000533,1734618652768,-500.0,0.00022739,4]
[346000534,1734618652777,-373.63695702,0.00022739,4]
[346000535,1734618652787,-277.96620311,0.00022739,4]
[346000536,1734618652796,-500.0,0.00022739,4]
[346000537,1734618652805,-244.22,0.00022739,4]
[346000538,1734618652814,-500.0,0.00022739,4]
[346000539,1734618652824,-500.0,0.00022739,2]
[346000540,1734618652833,-504.05725389,0.00022739,4]
[346000541,1734618652844,-500.0,0.00022739,4]
[346000542,1734618652853,-500.0,0.00022739,4]
[346000543,1734618652863,-500.0,0.00022739,4]
[346000544,1734618652872,-500.0,0.00022739,4]
[346000545,1734618652882,-500.0,0.00022739,4]
[346000546,1734618652893,-541.76,0.00022739,4]
[346000547,1734618652904,-500.0,0.00022739,4]
[346000548,1734618652913,-500.0,0.00022739,4]
[346000549,1734618652923,-500.0,0.00022739,4]
[346000550,1734618652933,-500.0,0.00022739,4]
[346000551,1734618652943,-500.0,0.00022739,4]
[346000552,1734618652952,-500.0,0.00022739,4]
[346000553,1734618652963,-575.22,0.00022739,4]
[346000554,1734618652972,-506.33531516,0.00022739,4]
[346000555,1734618652981,-689.88,0.00022739,4]
[346000556,1734618652991,-150.76185313,0.00022739,4]
[346000557,1734618653000,-500.0,0.00022739,4]
[346000558,1734618653010,-500.0,0.00022739,4]
[346000559,1734618653019,-539.88,0.00022739,4]
[346000560,1734618653029,-984.6,0.00022739,4]
[346000561,1734618653038,-500.0,0.00022739,4]
[346000562,1734618653047,-500.0,0.00022739,4]
[346000563,1734618653057,-500.0,0.00022739,4]
[346000564,1734618653067,-512.1,0.00022739,4]
[346000565,1734618653077,-500.0,0.00022739,4]
[346000566,1734618653087,-500.0,0.00022739,4]
[346000567,1734618653099,-500.0,0.00022739,4]
[346000568,1734618653108,-500.0,0.00022739,4]
[346000569,1734618653118,-500.0,0.00022739,4]
[346000570,1734618653127,-500.0,0.00022739,2]
[346000571,1734618653138,-505.41949955,0.00022739,4]
[346000572,1734618653147,-500.0,0.00022739,4]
[346000573,1734618653156,-500.0,0.00022739,4]
[346000574,1734618653166,-500.0,0.00022739,4]
[346000575,1734618653175,-500.0,0.00022739,4]
[346000576,1734618653185,-464.95561432,0.00022739,4]
[346000577,1734618653194,-500.0,0.00022739,4]
[346000578,1734618653204,-500.0,0.00022739,4]
[346000579,1734618653213,-190.485442,0.00022739,4]
[346000580,1734618653223,-500.0,0.00022739,4]
[346000581,1734618653233,-500.0,0.00022739,4]
[346000582,1734618653242,-500.0,0.00022739,4]
[346000583,1734618653252,-500.0,0.00022739,4]
[346000584,1734618653262,-500.0,0.00022739,4]
[346000585,1734618653271,-500.0,0.00022739,4]
[346000586,1734618653281,-500.0,0.00022739,4]
[346000587,1734618653290,-506.98642863,0.00022739,4]
[346000588,1734618653300,-500.0,0.00022739,4]
[346000589,1734618653309,-500.0,0.00022739,4]
[346000590,1734618653319,-500.0,0.00022739,4]
[346000591,1734618653329,-500.0,0.00022739,4]
[346000592,1734618653340,-500.0,0.00022739,4]
[346000593,1734618653349,-500.0,0.00022739,4]
[346000594,1734618653359,-500.0,0.00022739,4]
[346000595,1734618653368,-500.0,0.00022739,4]
[346000596,1734618653377,-500.0,0.00022739,4]
[346000597,1734618653387,-500.0,0.00022739,4]
[346000598,1734618653396,-500.0,0.00022739,4]
[346000599,1734618653405,-500.0,0.00022739,4]
[346000600,1734618653415,-500.0,0.00022739,4]
[346000601,1734618653424,-500.0,0.00022739,4]
[346000602,1734618653434,-500.0,0.00022739,4]
[346000603,1734618653444,-500.0,0.00022739,4]
[346000604,1734618653453,-256.95,0.00022739,4]
[346000605,1734618653463,-672.97,0.00022739,4]
[346000606,1734618653472,-500.0,0.00022739,4]
[346000607,1734618653482,-500.0,0.00022739,4]
[346000608,1734618653491,-500.0,0.00022739,4]
[346000609,1734618653501,-508.82,0.00022739,4]
[346000610,1734618653510,-658.64,0.00022739,4]
[346000611,1734618653520,-669.94,0.00022739,4]
[346000612,1734618653530,-500.0,0.00022739,4]
[346000613,1734618653539,-500.0,0.00022739,4]
[346000614,1734618653548,-500.0,0.00022739,4]
[346000615,1734618653557,-500.0,0.00022739,4]
[346000616,1734618653567,-500.0,0.00022739,4]
[346000617,1734618653576,-500.0,0.00022739,4]
[346000618,1734618653586,-500.0,0.00022739,4]
[346000619,1734618653595,-500.0,0.00022739,4]
[346000620,1734618653605,-1051.1,0.00022739,4]
[346000621,1734618653615,-500.0,0.00022739,4]
[346000622,1734618653624,-500.0,0.00022739,4]
[346000623,1734618653634,-643.56,0.00022739,4]
[346000624,1734618653643,-500.0,0.00022739,4]
[346000625,1734618653652,-500.0,0.00022739,4]
[346000626,1734618653661,-500.0,0.00022739,4]
[346000627,1734618653670,-500.0,0.00022739,4]
[346000628,1734618653679,-500.0,0.00022739,4]
[346000629,1734618653689,-500.0,0.00022739,4]
[346000630,1734618653698,-500.0,0.00022739,4]
[346000631,1734618653707,-500.0,0.00022739,4]
[346000632,1734618653717,-500.0,0.00022739,4]
[346000633,1734618653726,-500.0,0.00022739,4]
[346000634,1734618653735,-500.0,0.00022739,4]
[346000635,1734618653745,-500.0,0.00022739,4]
[346000636,1734618653755,-500.0,0.00022739,4]
[346000637,1734618653764,-500.0,0.00022739,4]
[346000638,1734618653774,-500.0,0.00022739,4]
[346000639,1734618653784,-539.96,0.00022739,4]
[346000640,1734618653794,-500.0,0.00022739,4]
[346000641,1734618653803,-545.38,0.00022739,4]
[346000642,1734618653814,-500.0,0.00022739,4]
[346000643,1734618653824,-500.0,0.00022739,4]
[346000644,1734618653833,-500.0,0.00022739,4]
[346000645,1734618653843,-500.0,0.00022739,4]
[346000646,1734618653852,-500.0,0.00022739,4]
[346000647,1734618653862,-500.0,0.00022739,4]
[346000648,1734618653872,-515.23,0.00022739,4]
[346000649,1734618653881,-500.0,0.00022739,4]
[346000650,1734618653891,-500.0,0.00022739,4]
[346000651,1734618653900,-581.44,0.00022739,4]
[346000652,1734618653910,-244.89328502,0.00022739,4]
[346000653,1734618653919,-500.0,0.00022739,4]
[346000654,1734618653928,-500.0,0.00022739,4]
[346000655,1734618653937,-500.0,0.00022739,4]
[346000656,1734618653946,-500.0,0.00022739,4]
[346000657,1734618653955,-500.0,0.00022739,4]
[346000658,1734618653965,-500.0,0.00022739,4]
[346000659,1734618653974,-809.96,0.00022739,4]
[346000660,1734618653983,-982.21,0.00022739,4]
[346000661,1734618653992,-500.0,0.00022739,4]
[346000662,1734618654001,-500.0,0.00022739,4]
[346000663,1734618654010,-1225.91,0.00022739,4]
[346000664,1734618654019,-546.89,0.00022739,4]
[346000665,1734618654028,-500.0,0.00022739,4]
[346000666,1734618654037,-1862.27,0.00022739,4]
[346000667,1734618654046,-500.0,0.00022739,4]
[346000668,1734618654057,-500.0,0.00022739,4]
[346000669,1734618654066,-500.0,0.00022739,4]
[346000670,1734618654075,-664.87,0.00022739,4]
[346000671,1734618654086,-500.0,0.00022739,4]
[346000672,1734618654095,-500.0,0.00022739,4]
[346000673,1734618654105,-1636.6,0.00022739,4]
[346000674,1734618654113,-500.0,0.00022739,4]
[346000675,1734618654123,-500.0,0.00022739,4]
[346000676,1734618654134,-1061.47,0.00022739,4]
[346000677,1734618654144,-500.0,0.00022739,4]
[346000678,1734618654154,-3443.32,0.00022739,4]
[346000679,1734618654163,-500.0,0.00022739,4]
[346000680,1734618654173,-500.0,0.00022739,4]
[346000681,1734618654182,-500.0,0.00022739,4]
[346000682,1734618654191,-500.0,0.00022739,4]
[346000683,1734618654200,-577.23,0.00022739,4]
[346000684,1734618654210,-510.18,0.00022739,4]
[346000685,1734618654219,-500.0,0.00022739,4]
[346000686,1734618654229,-500.0,0.00022739,4]
[346000687,1734618654239,-500.0,0.00022739,4]
[346000688,1734618654248,-530.10477263,0.00022739,4]
[346000689,1734618654257,-500.0,0.00022739,4]
[346000690,1734618654267,-561.94,0.00022739,4]
[346000691,1734618654276,-500.0,0.00022739,4]
[346000692,1734618654286,-500.0,0.00022739,4]
[346000693,1734618654295,-1000.92,0.00022739,4]
[346000694,1734618654305,-1011.42,0.00022739,4]
[346000695,1734618654315,-500.0,0.00022739,4]
[346000696,1734618654325,-1160.85,0.00022739,4]
[346000697,1734618654335,-889.04,0.00022739,4]
[346000698,1734618654348,-500.0,0.00022739,4]
[346000699,1734618654357,-513.5,0.00022739,4]
[346000700,1734618654367,-1470.92,0.00022739,4]
[346000701,1734618654377,-1902.12,0.00022739,4]
[346000702,1734618654386,-500.0,0.00022739,4]
[346000703,1734618654396,-1529.62,0.00022739,4]
[346000704,1734618654406,-500.0,0.00022739,4]
[346000705,1734618654415,-500.0,0.00022739,4]
[346000706,1734618654425,-500.0,0.00022739,4]
[346000707,1734618654435,-500.0,0.00022739,4]
[346000708,1734618654444,-1078.29,0.00022739,4]
[346000709,1734618654454,-500.0,0.00022739,4]
[346000710,1734618654464,-545.41,0.00022739,4]
[346000711,1734618654473,-500.0,0.00022739,4]
[346000712,1734618654483,-1136.86,0.00022739,4]
[346000713,1734618654493,-1932.48,0.00022739,4]
[346000714,1734618654502,-743.49,0.00022739,4]
[346000715,1734618654512,-743.12,0.00022739,4]
[346000716,1734618654521,-553.43,0.00022739,4]
[346000717,1734618654531,-527.87,0.00022739,4]
[346000718,1734618654541,-5190.88,0.00022739,4]
[346000719,1734618654550,-500.0,0.00022739,4]
[346000720,1734618654560,-500.0,0.00022739,4]
[346000721,1734618654570,-500.0,0.00022739,4]
[346000722,1734618654579,-966.08,0.00022739,4]
[346000723,1734618654589,-500.0,0.00022739,4]
[346000724,1734618654758,-500.0,0.00022739,4]
[346000725,1734618654769,-803.62,0.00022739,4]
[346000726,1734618654778,-598.14,0.00022739,4]
[346000727,1734618654788,-716.0,0.00022739,4]
[346000728,1734618654798,-500.0,0.00022739,4]
[346000729,1734618654807,-947.99,0.00022739,4]
[346000730,1734618654818,-501.8,0.00022739,4]
[346000731,1734618654827,-866.06,0.00022739,4]
[346000732,1734618654839,-3302.89,0.00022739,4]
[346000733,1734618654850,-500.0,0.00022739,4]
[346000734,1734618654860,-500.0,0.00022739,4]
[346000735,1734618654870,-500.0,0.00022739,4]
[346000736,1734618654879,-500.0,0.00022739,4]
[346000737,1734618654890,-1228.92,0.00022739,4]
[346000738,1734618654899,-601.24,0.00022739,4]
[346000739,1734618654909,-500.0,0.00022739,4]
[346000740,1734618654919,-1679.88,0.00022739,4]
[346000741,1734618654928,-550.22,0.00022739,4]
[346000742,1734618654938,-500.0,0.00022739,4]
[346000743,1734618654947,-500.0,0.00022739,4]
[346000744,1734618654956,-560.96,0.00022739,4]
[346000745,1734618654966,-500.0,0.00022739,4]
[346000746,1734618654975,-500.0,0.00022739,4]
[346000747,1734618654984,-550.8,0.00022739,4]
[346000748,1734618654994,-500.0,0.00022739,4]
[346000749,1734618655003,-500.0,0.00022739,4]
[346000750,1734618655013,-500.0,0.00022739,4]
[346000751,1734618655022,-500.0,0.00022739,4]
[346000752,1734618655031,-843.25,0.00022739,4]
[346000753,1734618655041,-1465.52,0.00022739,4]
[346000754,1734618655051,-541.01,0.00022739,4]
[346000755,1734618655064,-500.0,0.00022739,4]
[346000756,1734618655075,-780.36,0.00022739,4]
[346000757,1734618655084,-1897.2,0.00022739,4]
[346000758,1734618655098,-500.0,0.00022739,4]
[346000759,1734618655109,-500.0,0.00022739,4]
[346000760,1734618655119,-759.37,0.00022739,4]
[346000761,1734618655129,-1000.0,0.00022739,4]
[346000762,1734618655139,-500.0,0.00022739,4]
[346000763,1734618655148,-636.48,0.00022739,4]
[346000764,1734618655158,-1363.14,0.00022739,4]
[346000765,1734618655167,-500.0,0.00022739,4]
[346000766,1734618655176,-2028.95,0.00022739,4]
[346000767,1734618655186,-500.0,0.00022739,4]
[346000768,1734618655195,-835.94,0.00022739,4]
[346000769,1734618655205,-500.0,0.00022739,4]
[346000770,1734618655214,-500.0,0.00022739,4]
[346000771,1734618655224,-1527.78,0.00022739,4]
[346000772,1734618655234,-500.0,0.00022739,4]
[346000773,1734618655243,-2242.39,0.00022739,4]
[346000774,1734618655253,-500.0,0.00022739,4]
[346000775,1734618655263,-500.0,0.00022739,4]
[346000776,1734618655273,-500.0,0.00022739,4]
[346000777,1734618655283,-1000.0,0.00022739,2]
[346000778,1734618655292,-1423.1,0.00022739,4]
[346000779,1734618655303,-688.8,0.00022739,4]
[346000780,1734618655312,-1839.25,0.00022739,4]
[346000781,1734618655322,-500.0,0.00022739,4]
[346000782,1734618655332,-500.0,0.00022739,4]
[346000783,1734618655343,-500.0,0.00022739,4]
[346000784,1734618655352,-660.21,0.00022739,4]
[346000785,1734618655363,-537.53,0.00022739,4]
[346000786,1734618655372,-774.82,0.00022739,4]
[346000787,1734618655381,-500.0,0.00022739,4]
[346000788,1734618655391,-500.0,0.00022739,4]
[346000789,1734618655400,-500.0,0.00022739,4]
[346000790,1734618655410,-500.0,0.00022739,4]
[346000791,1734618655419,-500.0,0.00022739,4]
[346000792,1734618655429,-500.0,0.00022739,4]
[346000793,1734618655439,-3619.14,0.00022739,4]
[346000794,1734618655448,-500.0,0.00022739,4]
[346000795,1734618655458,-2277.39,0.00022739,4]
[346000796,1734618655467,-636.83,0.00022739,4]
[346000797,1734618655477,-590.84,0.00022739,4]
[346000798,1734618655487,-1506.26,0.00022739,4]
[346000799,1734618655497,-500.0,0.00022739,4]
[346000800,1734618655507,-500.0,0.00022739,4]
[346000801,1734618655516,-500.0,0.00022739,4]
[346000802,1734618655526,-1450.17,0.00022739,4]
[346000803,1734618655537,-500.0,0.00022739,4]
[346000804,1734618655546,-500.0,0.00022739,4]
[346000805,1734618655555,-1431.46,0.00022739,4]
[346000806,1734618655565,-622.14,0.00022739,4]
[346000807,1734618655575,-527.6322524,0.00022739,4]
[346000808,1734618655584,-500.0,0.00022739,4]
[346000809,1734618655596,-615.79,0.00022739,4]
[346000810,1734618655606,-1118.32,0.00022739,4]
[346000811,1734618655615,-500.0,0.00022739,4]